[Event "Live Chess"]
[Site "Chess.com"]
[Date "2024.06.01"]
[Round "-"]
[White "Duke_of_Bebington"]
[Black "Cruiseylee78"]
[Result "1-0"]
[WhiteElo "1645"]
[BlackElo "1697"]
[TimeControl "300"]
[EndTime "14:33:43 PDT"]
[Termination "Duke_of_Bebington won by resignation"]

1. e4 {[%clk 0:04:58.2]} 1... c5 {[%clk 0:04:58.7]} 2. c3 {[%clk 0:04:56.7]}
2... d6 {[%clk 0:04:57.7]} 3. d4 {[%clk 0:04:56.2]} 3... cxd4 {[%clk 0:04:57.2]}
4. cxd4 {[%clk 0:04:56.1]} 4... Nd7 {[%clk 0:04:56.4]} 5. Nc3 {[%clk 0:04:54.7]}
5... e5 {[%clk 0:04:55.8]} 6. Be3 {[%clk 0:04:50.8]} 6... Ngf6 {[%clk
0:04:54.9]} 7. Bd3 {[%clk 0:04:48.2]} 7... Be7 {[%clk 0:04:53.5]} 8. Nge2 {[%clk
0:04:47.1]} 8... h6 {[%clk 0:04:52.6]} 9. O-O {[%clk 0:04:46.8]} 9... g5 {[%clk
0:04:51.7]} 10. Rc1 {[%clk 0:04:42.1]} 10... Nf8 {[%clk 0:04:39.9]} 11. Ng3
{[%clk 0:04:38.9]} 11... Ng6 {[%clk 0:04:37.8]} 12. dxe5 {[%clk 0:04:32.8]}
12... dxe5 {[%clk 0:04:36.3]} 13. Bb5+ {[%clk 0:04:30.7]} 13... Kf8 {[%clk
0:04:33.6]} 14. Qxd8+ {[%clk 0:04:28.2]} 14... Bxd8 {[%clk 0:04:33.5]} 15. Rfd1
{[%clk 0:04:25.9]} 15... Be7 {[%clk 0:04:31.8]} 16. Nd5 {[%clk 0:04:23.5]} 16...
Nxd5 {[%clk 0:04:26.9]} 17. exd5 {[%clk 0:04:17.9]} 17... Nf4 {[%clk 0:04:24.8]}
18. d6 {[%clk 0:04:13.6]} 18... Bd8 {[%clk 0:04:18.8]} 19. d7 {[%clk 0:04:12.8]}
19... Bxd7 {[%clk 0:04:08.1]} 20. Rxd7 {[%clk 0:04:10.4]} 20... a6 {[%clk
0:04:07.1]} 21. Ba4 {[%clk 0:04:07.4]} 21... b5 {[%clk 0:03:37.2]} 22. Bb3
{[%clk 0:04:06.4]} 22... Ne6 {[%clk 0:02:42.9]} 23. Rcd1 {[%clk 0:03:54.5]}
23... Be7 {[%clk 0:02:30.9]} 24. Bxe6 {[%clk 0:03:51.5]} 24... fxe6 {[%clk
0:02:28]} 25. Ne4 {[%clk 0:03:46.1]} 25... Rg8 {[%clk 0:02:24.1]} 26. Bc5 {[%clk
0:03:43.9]} 26... Rg7 {[%clk 0:02:20.2]} 27. Bxe7+ {[%clk 0:03:37.9]} 27... Rxe7
{[%clk 0:02:17]} 28. Rxe7 {[%clk 0:03:31.1]} 28... Kxe7 {[%clk 0:02:16.9]} 29.
Nc5 {[%clk 0:03:29.7]} 29... Ra7 {[%clk 0:02:13.7]} 30. b4 {[%clk 0:03:24.4]}
30... a5 {[%clk 0:02:09.9]} 31. a3 {[%clk 0:03:23.2]} 31... a4 {[%clk
0:02:05.7]} 32. g3 {[%clk 0:03:19.1]} 32... e4 {[%clk 0:01:58.4]} 33. Nxe4
{[%clk 0:03:17]} 33... Rd7 {[%clk 0:01:54.9]} 34. Rxd7+ {[%clk 0:03:15.1]} 34...
Kxd7 {[%clk 0:01:52.1]} 35. Nc5+ {[%clk 0:03:14.7]} 35... Kd6 {[%clk 0:01:47]}
36. Kf1 {[%clk 0:03:14]} 36... Kc6 {[%clk 0:01:40.4]} 37. Ke2 {[%clk 0:03:13.2]}
37... Kd6 {[%clk 0:01:35.2]} 38. Kd3 {[%clk 0:03:12.2]} 38... Kd5 {[%clk
0:01:28.8]} 39. f3 {[%clk 0:03:07.8]} 39... e5 {[%clk 0:01:25.8]} 40. Ne4 {[%clk
0:03:01.2]} 40... Kc6 {[%clk 0:01:22.2]} 41. Nc3 {[%clk 0:02:52.2]} 41... h5
{[%clk 0:01:16.7]} 42. Ke4 {[%clk 0:02:51]} 42... Kc7 {[%clk 0:01:06.4]} 43.
Nxb5+ {[%clk 0:02:49.6]} 43... Kc6 {[%clk 0:01:03.2]} 44. Nc3 {[%clk 0:02:49.1]}
44... Kd6 {[%clk 0:00:57.7]} 45. Nxa4 {[%clk 0:02:48.1]} 45... h4 {[%clk
0:00:52]} 46. g4 {[%clk 0:02:44]} 46... Ke6 {[%clk 0:00:45.5]} 47. h3 {[%clk
0:02:42.3]} 47... Ke7 {[%clk 0:00:42.5]} 48. Nc3 {[%clk 0:02:41.8]} 48... Ke6
{[%clk 0:00:36.9]} 49. a4 {[%clk 0:02:41]} 49... Kd6 {[%clk 0:00:29.5]} 50. b5
{[%clk 0:02:40.4]} 1-0

[Event "Live Chess"]
[Site "Chess.com"]
[Date "2024.06.01"]
[Round "-"]
[White "Delacorta"]
[Black "GrahamCuthbert"]
[Result "1/2-1/2"]
[WhiteElo "1570"]
[BlackElo "1021"]
[TimeControl "300"]
[EndTime "14:33:50 PDT"]
[Termination "Game drawn by repetition"]

1. d4 {[%clk 0:04:57]} 1... d5 {[%clk 0:04:58.7]} 2. Nf3 {[%clk 0:04:56]} 2...
Nf6 {[%clk 0:04:57.9]} 3. e3 {[%clk 0:04:55.2]} 3... Bg4 {[%clk 0:04:56.9]} 4.
Be2 {[%clk 0:04:53.7]} 4... e6 {[%clk 0:04:55.1]} 5. Nbd2 {[%clk 0:04:52.7]}
5... c5 {[%clk 0:04:46.9]} 6. b3 {[%clk 0:04:51]} 6... cxd4 {[%clk 0:04:44.2]}
7. exd4 {[%clk 0:04:50.2]} 7... Nc6 {[%clk 0:04:41.7]} 8. Bb2 {[%clk 0:04:48.7]}
8... Bxf3 {[%clk 0:04:40.1]} 9. Nxf3 {[%clk 0:04:46.1]} 9... Be7 {[%clk
0:04:27.1]} 10. O-O {[%clk 0:04:44]} 10... O-O {[%clk 0:04:25.8]} 11. Ne5 {[%clk
0:04:40.1]} 11... Nxe5 {[%clk 0:04:22.6]} 12. dxe5 {[%clk 0:04:39.3]} 12... Ne4
{[%clk 0:04:18.3]} 13. Bd3 {[%clk 0:04:26.9]} 13... Nc5 {[%clk 0:03:54.1]} 14.
Be2 {[%clk 0:03:59.1]} 14... Qc7 {[%clk 0:03:44.1]} 15. f4 {[%clk 0:03:57.8]}
15... Ne4 {[%clk 0:03:33.1]} 16. c4 {[%clk 0:03:36.9]} 16... dxc4 {[%clk
0:03:25.2]} 17. Bxc4 {[%clk 0:03:33.7]} 17... Rfd8 {[%clk 0:03:22.1]} 18. Qe2
{[%clk 0:03:26.5]} 18... Qb6+ {[%clk 0:03:06]} 19. Kh1 {[%clk 0:03:13.2]} 19...
Nd2 {[%clk 0:03:02.1]} 20. Rfd1 {[%clk 0:02:52.1]} 20... Nxc4 {[%clk 0:02:58.6]}
21. Qxc4 {[%clk 0:02:34.7]} 21... Rac8 {[%clk 0:02:50]} 22. Qe2 {[%clk
0:02:27.7]} 22... Qa5 {[%clk 0:02:26.1]} 23. Bd4 {[%clk 0:02:10.9]} 23... Bc5
{[%clk 0:02:05.8]} 24. Bxc5 {[%clk 0:02:06.8]} 24... Qxc5 {[%clk 0:02:00.5]} 25.
h3 {[%clk 0:01:45.1]} 25... h6 {[%clk 0:01:56.8]} 26. Qb2 {[%clk 0:01:39.8]}
26... Rxd1+ {[%clk 0:01:53]} 27. Rxd1 {[%clk 0:01:37.9]} 27... Qe7 {[%clk
0:01:49.6]} 28. Rc1 {[%clk 0:01:34.8]} 28... Rxc1+ {[%clk 0:01:46.6]} 29. Qxc1
{[%clk 0:01:34.7]} 29... f6 {[%clk 0:01:44.7]} 30. exf6 {[%clk 0:01:32]} 30...
Qxf6 {[%clk 0:01:43.6]} 31. Qc8+ {[%clk 0:01:29.7]} 31... Kh7 {[%clk 0:01:38.4]}
32. Qc7 {[%clk 0:01:24.7]} 32... Qd4 {[%clk 0:01:15.6]} 33. Qe5 {[%clk
0:01:15.3]} 33... Qxe5 {[%clk 0:01:01.3]} 34. fxe5 {[%clk 0:01:15.2]} 34... Kg8
{[%clk 0:01:00.1]} 35. g4 {[%clk 0:01:13.9]} 35... Kf7 {[%clk 0:00:59]} 36. Kg2
{[%clk 0:01:01.7]} 36... Ke7 {[%clk 0:00:57]} 37. Kf3 {[%clk 0:01:00.3]} 37...
Kd7 {[%clk 0:00:56.4]} 38. h4 {[%clk 0:00:54.8]} 38... Kc6 {[%clk 0:00:55.5]}
39. Ke4 {[%clk 0:00:49.9]} 39... g6 {[%clk 0:00:49.7]} 40. b4 {[%clk 0:00:42.5]}
40... b6 {[%clk 0:00:45.8]} 41. a4 {[%clk 0:00:40.5]} 41... a5 {[%clk
0:00:44.1]} 42. bxa5 {[%clk 0:00:23.2]} 42... bxa5 {[%clk 0:00:43.2]} 43. Kd4
{[%clk 0:00:22.1]} 43... Kb6 {[%clk 0:00:37.5]} 44. Kc4 {[%clk 0:00:21.1]} 44...
Kc6 {[%clk 0:00:36.5]} 45. Kd4 {[%clk 0:00:19.3]} 45... Kb6 {[%clk 0:00:34.4]}
46. Kc4 {[%clk 0:00:18.5]} 46... Kc6 {[%clk 0:00:33.5]} 47. Kd4 {[%clk
0:00:17.9]} 1/2-1/2

[Event "Live Chess"]
[Site "Chess.com"]
[Date "2024.06.01"]
[Round "-"]
[White "RichardABates"]
[Black "peteopeteo"]
[Result "1-0"]
[WhiteElo "2232"]
[BlackElo "1574"]
[TimeControl "300"]
[EndTime "14:34:04 PDT"]
[Termination "RichardABates won by resignation"]

1. d4 {[%clk 0:04:57.6]} 1... f5 {[%clk 0:04:58.1]} 2. g3 {[%clk 0:04:54.9]}
2... Nf6 {[%clk 0:04:57.2]} 3. Bg2 {[%clk 0:04:54]} 3... d6 {[%clk 0:04:55.4]}
4. c4 {[%clk 0:04:52.5]} 4... g6 {[%clk 0:04:51.5]} 5. Nc3 {[%clk 0:04:51.3]}
5... e6 {[%clk 0:04:45.7]} 6. h4 {[%clk 0:04:47.8]} 6... Nbd7 {[%clk 0:04:38.4]}
7. h5 {[%clk 0:04:43.6]} 7... Bg7 {[%clk 0:04:31.4]} 8. hxg6 {[%clk 0:04:40]}
8... hxg6 {[%clk 0:04:30.1]} 9. Rxh8+ {[%clk 0:04:39.2]} 9... Bxh8 {[%clk
0:04:30]} 10. Bg5 {[%clk 0:04:37.1]} 10... Qe7 {[%clk 0:04:24.5]} 11. Nb5 {[%clk
0:04:33.9]} 11... Nb6 {[%clk 0:04:15.7]} 12. Rc1 {[%clk 0:04:13.8]} 12... a6
{[%clk 0:04:06.7]} 13. c5 {[%clk 0:04:04.6]} 13... axb5 {[%clk 0:03:56.7]} 14.
cxb6 {[%clk 0:04:03.1]} 14... c6 {[%clk 0:03:48.8]} 15. Qb3 {[%clk 0:03:47.5]}
15... Kd7 {[%clk 0:03:35.7]} 16. Nh3 {[%clk 0:03:42.6]} 16... Qf7 {[%clk
0:03:23.9]} 17. Nf4 {[%clk 0:03:35.9]} 17... Nd5 {[%clk 0:03:19.1]} 18. Nxd5
{[%clk 0:03:31.9]} 18... cxd5 {[%clk 0:03:19]} 19. Rc7+ {[%clk 0:03:30.2]} 19...
Ke8 {[%clk 0:03:10.8]} 20. Rxf7 {[%clk 0:03:26.6]} 20... Kxf7 {[%clk 0:03:10.7]}
21. Qc3 {[%clk 0:03:15.5]} 21... Bd7 {[%clk 0:03:01.4]} 22. Qc7 {[%clk
0:03:13.8]} 22... Ke8 {[%clk 0:03:00.7]} 23. Qxd6 {[%clk 0:03:12.2]} 1-0

[Event "Live Chess"]
[Site "Chess.com"]
[Date "2024.06.01"]
[Round "-"]
[White "Mikhail_Golubev"]
[Black "blunderabit"]
[Result "1-0"]
[WhiteElo "2602"]
[BlackElo "1786"]
[TimeControl "300"]
[EndTime "14:34:13 PDT"]
[Termination "Mikhail_Golubev won on time"]

1. e4 {[%clk 0:04:57.8]} 1... c5 {[%clk 0:04:57.8]} 2. Nf3 {[%clk 0:04:56.2]}
2... d6 {[%clk 0:04:56.6]} 3. d4 {[%clk 0:04:55.2]} 3... cxd4 {[%clk 0:04:54.9]}
4. Nxd4 {[%clk 0:04:54.7]} 4... Nf6 {[%clk 0:04:54.1]} 5. Nc3 {[%clk 0:04:53.7]}
5... a6 {[%clk 0:04:53.4]} 6. g3 {[%clk 0:04:51.5]} 6... e5 {[%clk 0:04:50.7]}
7. Nde2 {[%clk 0:04:49.2]} 7... Be6 {[%clk 0:04:47.6]} 8. Bg2 {[%clk 0:04:46.9]}
8... Nbd7 {[%clk 0:04:45.3]} 9. a4 {[%clk 0:04:41.6]} 9... Be7 {[%clk
0:04:34.6]} 10. O-O {[%clk 0:04:39.4]} 10... O-O {[%clk 0:04:32.9]} 11. h3
{[%clk 0:04:35.8]} 11... Qc7 {[%clk 0:04:13]} 12. Be3 {[%clk 0:04:00]} 12... Nb6
{[%clk 0:03:59.9]} 13. b3 {[%clk 0:03:36.4]} 13... Nbd7 {[%clk 0:03:52.4]} 14.
Nd5 {[%clk 0:03:19.4]} 14... Bxd5 {[%clk 0:03:35.8]} 15. exd5 {[%clk 0:03:19.3]}
15... a5 {[%clk 0:03:33.7]} 16. c4 {[%clk 0:03:08.1]} 16... b6 {[%clk
0:03:32.3]} 17. Nc3 {[%clk 0:03:04.1]} 17... Nc5 {[%clk 0:03:24]} 18. f4 {[%clk
0:03:01]} 18... Nfd7 {[%clk 0:03:07.9]} 19. Qc2 {[%clk 0:02:39.5]} 19... Bf6
{[%clk 0:03:01.8]} 20. f5 {[%clk 0:02:29.3]} 20... e4 {[%clk 0:02:43.7]} 21. Nb5
{[%clk 0:02:21.5]} 21... Qd8 {[%clk 0:02:30.7]} 22. Rad1 {[%clk 0:02:16.6]}
22... Ne5 {[%clk 0:02:25.9]} 23. Bxe4 {[%clk 0:01:37.9]} 23... Re8 {[%clk
0:02:23.1]} 24. Bf4 {[%clk 0:01:20]} 24... Nxe4 {[%clk 0:02:08.9]} 25. Qxe4
{[%clk 0:01:19.9]} 25... Ng6 {[%clk 0:02:07.5]} 26. Qd3 {[%clk 0:01:05.1]} 26...
Nxf4 {[%clk 0:02:05.6]} 27. Rxf4 {[%clk 0:01:01.7]} 27... Be5 {[%clk 0:02:04.2]}
28. Rf3 {[%clk 0:00:57.5]} 28... Qg5 {[%clk 0:02:00.5]} 29. Nd4 {[%clk
0:00:53.9]} 29... Bxd4+ {[%clk 0:01:40.4]} 30. Qxd4 {[%clk 0:00:53.8]} 30... Re2
{[%clk 0:01:34.9]} 31. Qxb6 {[%clk 0:00:43.6]} 31... Rae8 {[%clk 0:01:29.9]} 32.
Qd4 {[%clk 0:00:34.7]} 32... R8e4 {[%clk 0:01:12.4]} 33. Qd3 {[%clk 0:00:26.3]}
33... Qf6 {[%clk 0:00:57.3]} 34. c5 {[%clk 0:00:21.5]} 34... Qb2 {[%clk
0:00:47.9]} 35. cxd6 {[%clk 0:00:18.8]} 35... Rg2+ {[%clk 0:00:46.1]} 36. Kf1
{[%clk 0:00:17.7]} 36... Rh2 {[%clk 0:00:40.7]} 37. Rd2 {[%clk 0:00:05.5]} 37...
Rxd2 {[%clk 0:00:27.3]} 38. Qxe4 {[%clk 0:00:04.8]} 38... Rd1+ {[%clk
0:00:19.9]} 39. Qe1 {[%clk 0:00:04.3]} 39... Rxe1+ {[%clk 0:00:18.2]} 40. Kxe1
{[%clk 0:00:04.2]} 40... Qe5+ {[%clk 0:00:14.4]} 41. Kd2 {[%clk 0:00:02.3]}
41... Qxd6 {[%clk 0:00:13.6]} 42. Re3 {[%clk 0:00:01.8]} 42... Qxd5+ {[%clk
0:00:11.1]} 43. Rd3 {[%clk 0:00:01.4]} 43... Qa8 {[%clk 0:00:07.8]} 44. b4
{[%clk 0:00:01.1]} 44... axb4 {[%clk 0:00:05.1]} 45. Kc2 {[%clk 0:00:01]} 45...
f6 {[%clk 0:00:03.4]} 46. Kb2 {[%clk 0:00:00.8]} 46... Qxa4 {[%clk 0:00:01.2]}
47. Rd7 {[%clk 0:00:00.6]} 1-0

[Event "Live Chess"]
[Site "Chess.com"]
[Date "2024.06.01"]
[Round "-"]
[White "AnotherOneBadPlayer"]
[Black "koekoekoe"]
[Result "1-0"]
[WhiteElo "2224"]
[BlackElo "2003"]
[TimeControl "300"]
[EndTime "14:34:37 PDT"]
[Termination "AnotherOneBadPlayer won by checkmate"]

1. Nf3 {[%clk 0:04:56.4]} 1... d5 {[%clk 0:04:59.9]} 2. b3 {[%clk 0:04:55]} 2...
Nf6 {[%clk 0:04:59.3]} 3. Bb2 {[%clk 0:04:54.6]} 3... Bf5 {[%clk 0:04:58.6]} 4.
e3 {[%clk 0:04:53.9]} 4... e6 {[%clk 0:04:58.2]} 5. Be2 {[%clk 0:04:53]} 5... c5
{[%clk 0:04:57.6]} 6. O-O {[%clk 0:04:51.8]} 6... Nc6 {[%clk 0:04:57.1]} 7. d4
{[%clk 0:04:50.8]} 7... cxd4 {[%clk 0:04:56.1]} 8. Nxd4 {[%clk 0:04:49.7]} 8...
Bg6 {[%clk 0:04:48.6]} 9. Nd2 {[%clk 0:04:46.3]} 9... Bc5 {[%clk 0:04:46.4]} 10.
N2f3 {[%clk 0:04:32.1]} 10... O-O {[%clk 0:04:43.8]} 11. Qd2 {[%clk 0:04:18]}
11... Rc8 {[%clk 0:04:43.1]} 12. Nxc6 {[%clk 0:04:10.5]} 12... Rxc6 {[%clk
0:04:39.8]} 13. Rac1 {[%clk 0:03:54.9]} 13... Ne4 {[%clk 0:04:32.7]} 14. Qd1
{[%clk 0:03:52.4]} 14... Bb4 {[%clk 0:04:21.8]} 15. Qd4 {[%clk 0:03:35.6]} 15...
Bc3 {[%clk 0:04:07.6]} 16. Bxc3 {[%clk 0:03:30.4]} 16... Nxc3 {[%clk 0:04:07.5]}
17. Bd3 {[%clk 0:03:20.1]} 17... Nxa2 {[%clk 0:03:49.5]} 18. Ra1 {[%clk
0:03:14.3]} 18... Nc3 {[%clk 0:03:38.3]} 19. Rxa7 {[%clk 0:03:09.3]} 19... Bxd3
{[%clk 0:03:33.3]} 20. Qxd3 {[%clk 0:03:05.8]} 20... Qb6 {[%clk 0:03:28.8]} 21.
Rfa1 {[%clk 0:02:58.3]} 21... Rfc8 {[%clk 0:03:24.1]} 22. Ra8 {[%clk 0:02:51.1]}
22... g6 {[%clk 0:03:14.9]} 23. h4 {[%clk 0:02:41.5]} 23... Ne4 {[%clk
0:03:10.9]} 24. c4 {[%clk 0:02:34.1]} 24... Nc5 {[%clk 0:03:01.6]} 25. Qd4
{[%clk 0:02:28.4]} 25... Qxb3 {[%clk 0:02:38.1]} 26. h5 {[%clk 0:01:24.3]} 26...
Qxc4 {[%clk 0:02:29.1]} 27. Qf6 {[%clk 0:01:19.4]} 27... Ne4 {[%clk 0:02:18.1]}
28. Qe5 {[%clk 0:01:13.7]} 28... Rxa8 {[%clk 0:02:08.2]} 29. Rxa8+ {[%clk
0:01:08.7]} 29... Rc8 {[%clk 0:02:07.7]} 30. h6 {[%clk 0:00:57.3]} 30... Kf8
{[%clk 0:01:21]} 31. Rxc8+ {[%clk 0:00:50.3]} 31... Qxc8 {[%clk 0:01:17.5]} 32.
Qh8+ {[%clk 0:00:48.3]} 32... Ke7 {[%clk 0:01:17.2]} 33. Qxc8 {[%clk 0:00:47.2]}
33... b5 {[%clk 0:01:14.7]} 34. Qb7+ {[%clk 0:00:43.5]} 34... Kf6 {[%clk
0:01:14.2]} 35. Qxb5 {[%clk 0:00:39.9]} 35... Nd6 {[%clk 0:01:13.1]} 36. Qd7
{[%clk 0:00:37.5]} 36... Nf5 {[%clk 0:01:13]} 37. Qd8+ {[%clk 0:00:36.1]} 37...
Ne7 {[%clk 0:01:11]} 38. g4 {[%clk 0:00:33.5]} 38... g5 {[%clk 0:01:09.7]} 39.
Qh8+ {[%clk 0:00:29.7]} 39... Kg6 {[%clk 0:01:08.4]} 40. Qg7# {[%clk 0:00:28.6]}
1-0

[Event "Live Chess"]
[Site "Chess.com"]
[Date "2024.06.01"]
[Round "-"]
[White "WorcesterYork"]
[Black "ACM42"]
[Result "0-1"]
[WhiteElo "2477"]
[BlackElo "2185"]
[TimeControl "300"]
[EndTime "14:34:41 PDT"]
[Termination "ACM42 won by resignation"]

1. e4 {[%clk 0:04:57.8]} 1... e6 {[%clk 0:04:57.6]} 2. d4 {[%clk 0:04:57]} 2...
d5 {[%clk 0:04:56.8]} 3. Nc3 {[%clk 0:04:56.3]} 3... Bb4 {[%clk 0:04:55.2]} 4.
e5 {[%clk 0:04:55.5]} 4... c5 {[%clk 0:04:54.6]} 5. dxc5 {[%clk 0:04:55.4]} 5...
Nc6 {[%clk 0:04:50.5]} 6. Nf3 {[%clk 0:04:54.5]} 6... Bxc5 {[%clk 0:04:47.6]} 7.
Bd3 {[%clk 0:04:53.6]} 7... Nge7 {[%clk 0:04:46.4]} 8. O-O {[%clk 0:04:52.4]}
8... Ng6 {[%clk 0:04:45.5]} 9. Bxg6 {[%clk 0:04:49.6]} 9... hxg6 {[%clk
0:04:44.4]} 10. Re1 {[%clk 0:04:49.1]} 10... a6 {[%clk 0:04:37.9]} 11. a3 {[%clk
0:04:48.4]} 11... b5 {[%clk 0:04:34.5]} 12. Ne2 {[%clk 0:04:46.9]} 12... Qb6
{[%clk 0:04:31.7]} 13. Rf1 {[%clk 0:04:46.2]} 13... d4 {[%clk 0:04:14.4]} 14. b4
{[%clk 0:04:44.4]} 14... Be7 {[%clk 0:04:09.4]} 15. Bb2 {[%clk 0:04:42.9]} 15...
Bb7 {[%clk 0:04:06.4]} 16. Nexd4 {[%clk 0:04:38.5]} 16... Rd8 {[%clk 0:04:03.2]}
17. Qe2 {[%clk 0:04:34.9]} 17... Nxd4 {[%clk 0:03:59.2]} 18. Nxd4 {[%clk
0:04:34.2]} 18... Rxd4 {[%clk 0:03:58]} 19. Bxd4 {[%clk 0:04:32.2]} 19... Qxd4
{[%clk 0:03:57.1]} 20. Rad1 {[%clk 0:04:31.8]} 20... Qb6 {[%clk 0:03:52.6]} 21.
Rd3 {[%clk 0:04:23.8]} 21... Bd5 {[%clk 0:03:32.5]} 22. Qe3 {[%clk 0:04:22.6]}
22... Qb7 {[%clk 0:03:21.8]} 23. f3 {[%clk 0:04:16.5]} 23... Bc4 {[%clk
0:03:19.8]} 24. Rfd1 {[%clk 0:04:14.6]} 24... Bxd3 {[%clk 0:03:18.4]} 25. Qxd3
{[%clk 0:04:13.9]} 25... O-O {[%clk 0:03:14.9]} 0-1

[Event "Live Chess"]
[Site "Chess.com"]
[Date "2024.06.01"]
[Round "-"]
[White "Queensandpawns"]
[Black "Delacorta"]
[Result "1-0"]
[WhiteElo "2372"]
[BlackElo "1570"]
[TimeControl "300"]
[EndTime "14:34:49 PDT"]
[Termination "Queensandpawns won by resignation"]

1. e4 {[%clk 0:04:58.1]} 1... e6 {[%clk 0:04:59.2]} 2. c4 {[%clk 0:04:55.6]}
2... Bc5 {[%clk 0:04:55.3]} 3. d4 {[%clk 0:04:54.6]} 3... Bb4+ {[%clk
0:04:53.5]} 4. Nc3 {[%clk 0:04:54.5]} 4... Ne7 {[%clk 0:04:44]} 5. e5 {[%clk
0:04:52.6]} 5... Ng6 {[%clk 0:04:40.2]} 6. h4 {[%clk 0:04:51.3]} 6... Nf4 {[%clk
0:04:37.4]} 7. Bxf4 {[%clk 0:04:49.9]} 7... O-O {[%clk 0:04:32.1]} 8. Bd3 {[%clk
0:04:48.5]} 8... Bxc3+ {[%clk 0:04:30.5]} 9. bxc3 {[%clk 0:04:47.5]} 9... a6
{[%clk 0:04:28.8]} 10. Qh5 {[%clk 0:04:46.4]} 10... g6 {[%clk 0:04:27.4]} 11.
Qh6 {[%clk 0:04:45.8]} 1-0

[Event "Live Chess"]
[Site "Chess.com"]
[Date "2024.06.01"]
[Round "-"]
[White "StoreySniper"]
[Black "Mangoalo"]
[Result "1-0"]
[WhiteElo "2529"]
[BlackElo "1067"]
[TimeControl "300"]
[EndTime "14:34:59 PDT"]
[Termination "StoreySniper won by resignation"]

1. e4 {[%clk 0:04:57.6]} 1... Nc6 {[%clk 0:04:55.5]} 2. Nf3 {[%clk 0:04:55.8]}
2... d5 {[%clk 0:04:54.4]} 3. exd5 {[%clk 0:04:54.6]} 3... Qxd5 {[%clk
0:04:54.3]} 4. Nc3 {[%clk 0:04:54]} 4... Qa5 {[%clk 0:04:53.6]} 5. Bb5 {[%clk
0:04:52.4]} 5... Bd7 {[%clk 0:04:50]} 6. a3 {[%clk 0:04:50.7]} 6... a6 {[%clk
0:04:47.7]} 7. b4 {[%clk 0:04:46.5]} 7... Qb6 {[%clk 0:04:43.7]} 8. Nd5 {[%clk
0:04:41.8]} 8... axb5 {[%clk 0:04:27.7]} 9. Nxb6 {[%clk 0:04:39.2]} 9... cxb6
{[%clk 0:04:27.6]} 10. Bb2 {[%clk 0:04:37.7]} 10... Nf6 {[%clk 0:04:25.4]} 11.
Qe2 {[%clk 0:04:35.5]} 11... e6 {[%clk 0:04:24.1]} 12. O-O {[%clk 0:04:29.3]}
12... Be7 {[%clk 0:04:22.5]} 13. Qxb5 {[%clk 0:04:27.7]} 13... Nd4 {[%clk
0:04:09.5]} 14. Qxb6 {[%clk 0:04:23.3]} 14... Nxf3+ {[%clk 0:04:06.2]} 15. gxf3
{[%clk 0:04:22.2]} 15... O-O {[%clk 0:04:04.4]} 16. Bxf6 {[%clk 0:04:14.7]}
16... Bxf6 {[%clk 0:04:02.9]} 17. Qxb7 {[%clk 0:04:13.9]} 17... Ba4 {[%clk
0:03:56.3]} 18. c4 {[%clk 0:04:08.9]} 18... Rab8 {[%clk 0:03:53.6]} 19. Qe4
{[%clk 0:04:04.1]} 19... Bxa1 {[%clk 0:03:48.1]} 20. Rxa1 {[%clk 0:04:04]} 20...
f5 {[%clk 0:03:41.1]} 21. Qxe6+ {[%clk 0:04:01.7]} 21... Kh8 {[%clk 0:03:40.1]}
22. Qa6 {[%clk 0:03:43.3]} 22... Bd7 {[%clk 0:03:36.6]} 23. Qd6 {[%clk
0:03:36.9]} 23... Ba4 {[%clk 0:03:34.5]} 24. c5 {[%clk 0:03:35.7]} 24... Bb3
{[%clk 0:03:07.5]} 25. c6 {[%clk 0:03:27.7]} 25... Rbd8 {[%clk 0:03:05.4]} 26.
Qf4 {[%clk 0:02:58.3]} 26... Be6 {[%clk 0:02:54.9]} 27. c7 {[%clk 0:02:56]}
27... Rc8 {[%clk 0:02:53.1]} 28. Rc1 {[%clk 0:02:54.3]} 1-0

[Event "Live Chess"]
[Site "Chess.com"]
[Date "2024.06.01"]
[Round "-"]
[White "oscalik"]
[Black "LL220284LL"]
[Result "1-0"]
[WhiteElo "2340"]
[BlackElo "2531"]
[TimeControl "300"]
[EndTime "14:35:08 PDT"]
[Termination "oscalik won by resignation"]

1. e4 {[%clk 0:04:57.5]} 1... e6 {[%clk 0:04:58.6]} 2. d4 {[%clk 0:04:55]} 2...
d5 {[%clk 0:04:55.1]} 3. Nd2 {[%clk 0:04:53.7]} 3... dxe4 {[%clk 0:04:54.4]} 4.
Nxe4 {[%clk 0:04:52.7]} 4... Bd7 {[%clk 0:04:54]} 5. Nf3 {[%clk 0:04:51.2]} 5...
Bc6 {[%clk 0:04:53.2]} 6. Bd3 {[%clk 0:04:50.8]} 6... Nd7 {[%clk 0:04:51.4]} 7.
Bg5 {[%clk 0:04:42.5]} 7... Be7 {[%clk 0:04:49.9]} 8. h4 {[%clk 0:04:37.7]} 8...
Ngf6 {[%clk 0:04:48.1]} 9. Qe2 {[%clk 0:04:34.7]} 9... Nxe4 {[%clk 0:04:44.4]}
10. Bxe4 {[%clk 0:04:33.6]} 10... Bxe4 {[%clk 0:04:42.7]} 11. Qxe4 {[%clk
0:04:33.5]} 11... c6 {[%clk 0:04:41.9]} 12. O-O-O {[%clk 0:04:29.2]} 12... h6
{[%clk 0:04:40.1]} 13. Bxe7 {[%clk 0:04:24.7]} 13... Qxe7 {[%clk 0:04:40]} 14.
Kb1 {[%clk 0:04:23.6]} 14... O-O-O {[%clk 0:04:37.3]} 15. c3 {[%clk 0:04:17.6]}
15... Kb8 {[%clk 0:04:36.2]} 16. Qf4+ {[%clk 0:04:15.3]} 16... Ka8 {[%clk
0:04:34.1]} 17. h5 {[%clk 0:04:06.8]} 17... Rhe8 {[%clk 0:04:31.7]} 18. Rhe1
{[%clk 0:04:04.7]} 18... Nf6 {[%clk 0:04:29.4]} 19. Ne5 {[%clk 0:03:53.1]} 19...
Qc7 {[%clk 0:04:19.6]} 20. g4 {[%clk 0:03:48.4]} 20... Re7 {[%clk 0:04:12.4]}
21. f3 {[%clk 0:03:30.7]} 21... Nd5 {[%clk 0:04:08.6]} 22. Qd2 {[%clk
0:03:29.7]} 22... Ree8 {[%clk 0:04:03.6]} 23. Rf1 {[%clk 0:03:13.1]} 23... f6
{[%clk 0:03:52.7]} 24. Nd3 {[%clk 0:03:08.6]} 24... e5 {[%clk 0:03:47.6]} 25.
dxe5 {[%clk 0:03:05.1]} 25... fxe5 {[%clk 0:03:46.3]} 26. Qf2 {[%clk 0:02:49.7]}
26... Nf4 {[%clk 0:03:38.8]} 27. Nxf4 {[%clk 0:02:35.6]} 27... exf4 {[%clk
0:03:38.7]} 28. Rd4 {[%clk 0:02:33.4]} 28... Qe5 {[%clk 0:03:26.6]} 29. Rfd1
{[%clk 0:02:28]} 29... Rxd4 {[%clk 0:03:22.9]} 30. Qxd4 {[%clk 0:02:24.7]} 30...
Qxd4 {[%clk 0:03:01.1]} 31. Rxd4 {[%clk 0:02:22.9]} 31... a6 {[%clk 0:02:55.7]}
32. Rxf4 {[%clk 0:02:21.2]} 32... Re7 {[%clk 0:02:53.2]} 33. Kc2 {[%clk
0:02:19.8]} 33... Kb8 {[%clk 0:02:51.5]} 34. Kd3 {[%clk 0:02:19.4]} 34... Kc7
{[%clk 0:02:50.8]} 35. Re4 {[%clk 0:02:14.9]} 35... Rf7 {[%clk 0:02:50]} 36. f4
{[%clk 0:02:13.3]} 36... Kd6 {[%clk 0:02:49.1]} 37. Rd4+ {[%clk 0:02:10.8]}
37... Ke6 {[%clk 0:02:45.1]} 38. Ke4 {[%clk 0:02:10.3]} 38... Re7 {[%clk
0:02:43.8]} 39. Kf3 {[%clk 0:02:01.7]} 39... Kf6 {[%clk 0:02:39.1]} 40. Rd6+
{[%clk 0:01:53.1]} 40... Kf7 {[%clk 0:02:37.9]} 41. a4 {[%clk 0:01:49.3]} 41...
a5 {[%clk 0:02:34.5]} 42. g5 {[%clk 0:01:46.5]} 42... hxg5 {[%clk 0:02:30.9]}
43. fxg5 {[%clk 0:01:46.4]} 43... Re5 {[%clk 0:02:24.9]} 44. Kf4 {[%clk
0:01:40.8]} 44... Re7 {[%clk 0:02:20]} 45. Kf5 {[%clk 0:01:33.8]} 45... Ke8
{[%clk 0:02:06.2]} 46. Re6 {[%clk 0:01:32.5]} 1-0